fUSD/lending_fUSD_20260630
["ID","MTS","AMOUNT","RATE_DAILY","PERIOD"]
[426770425,1782803439000,-216.62538722,9.775e-05,2]
[426770426,1782803439000,-160.0,9.775e-05,2]
[426770429,1782803439000,-301.0,9.869e-05,2]
[426770418,1782803439000,-577.71153879,9.667e-05,2]
[426770428,1782803439000,-172.0,9.798e-05,2]
[426770421,1782803439000,-250.0,9.691e-05,2]
[426770413,1782803439000,-162.78835444,9.58e-05,2]
[426770417,1782803439000,-301.0,9.647e-05,2]
[426770419,1782803439000,-5078.88,9.67e-05,2]
[426770423,1782803439000,-301.0,9.721e-05,2]
[426770432,1782803439000,-255.0,9.942e-05,2]
[426770424,1782803439000,-387.0,9.74e-05,2]
[426770411,1782803439000,-220.34822766,9.514e-05,2]
[426770409,1782803439000,-210366.25238542,9.51e-05,2]
[426770410,1782803439000,-155.1049337,9.514e-05,2]
[426770408,1782803439000,-909.0,9.51e-05,2]
[426770416,1782803439000,-387.0,9.646e-05,2]
[426770434,1782803439000,-180.0,9.979e-05,2]
[426770412,1782803439000,-172.0,9.526e-05,2]
[426770430,1782803439000,-172.0,9.888e-05,2]
[426770431,1782803439000,-250.0,9.942e-05,2]
[426770454,1782803439000,-2582.805,0.00011,2]
[426770452,1782803439000,-150.0,0.00010959,2]
[426770451,1782803439000,-166.66,0.00010959,2]
[426770453,1782803439000,-1409.68978833,0.00011,2]
[426770449,1782803439000,-2742.44262622,0.000109,2]
[426770448,1782803439000,-2180.19,0.00010857,2]
[426770445,1782803439000,-6200.8,0.00010162,2]
[426770447,1782803439000,-167.17362569,0.00010621,2]
[426770444,1782803439000,-301.0,0.00010091,2]
[426770441,1782803439000,-24776.10647668,0.00010046,2]
[426770450,1782803439000,-433.0,0.00010936,2]
[426770437,1782803439000,-211.26432973,0.0001,2]
[426770442,1782803439000,-8942.99204789,0.00010046,2]
[426770439,1782803439000,-41661.85011168,0.00010046,2]
[426770440,1782803439000,-43997.04341164,0.00010046,2]
[426770446,1782803439000,-500.0,0.00010459,2]
[426770438,1782803439000,-301.0,0.00010017,2]
[426770435,1782803439000,-151.733033,0.0001,2]
[426770433,1782803439000,-301.0,9.943e-05,2]
[426770443,1782803439000,-9145.11769491,0.00010046,2]
[426770436,1782803439000,-151.0,0.0001,2]
[426770472,1782803440000,-166.66,0.00011397,2]
[426770473,1782803440000,-352.4293679,0.000114,2]
[426770470,1782803440000,-387.0,0.00011226,2]
[426770471,1782803440000,-166.66,0.00011288,2]
[426770475,1782803440000,-219.22614434,0.00011527,2]
[426770478,1782803440000,-1805.0,0.00011696,2]
[426770476,1782803440000,-3980.10483627,0.00011696,2]
[426770477,1782803440000,-1035.39100963,0.00011696,2]
[426770480,1782803440000,-455.16523316,0.00011696,2]
[426770469,1782803440000,-382.61644574,0.00011224,2]
[426770485,1782803440000,-633.86219174,0.00012339,2]
[426770474,1782803440000,-166.66,0.00011507,2]
[426770467,1782803440000,-160.0,9.758e-05,2]
[426770457,1782803440000,-12362.35007206,0.00011099,2]
[426770465,1782803440000,-260.03248731,0.00011224,2]
[426770463,1782803440000,-300.0,0.00011224,2]
[426770466,1782803440000,-433.38480779,0.00011224,2]
[426770464,1782803440000,-8420.20331306,0.00011224,2]
[426770462,1782803440000,-5923.78777572,0.00011224,2]
[426770460,1782803440000,-387.0,0.00011207,2]
[426770461,1782803440000,-500.0,0.00011207,2]
[426770455,1782803440000,-159.5711093,0.00011,2]
[426770456,1782803440000,-166.66,0.00011068,2]
[426770458,1782803440000,-16734.99177888,0.00011099,2]
[426770459,1782803440000,-166.66,0.00011178,2]
[426770481,1782803440000,-4661.82352811,0.00011696,2]
[426770468,1782803440000,-1014.96694924,0.00011224,2]
[426770483,1782803440000,-179.86219174,0.0001203,2]
[426770479,1782803440000,-424.86546487,0.00011696,2]
[426770482,1782803440000,-267.11296918,0.00012017,2]
[426770484,1782803440000,-556.13780826,0.0001203,2]
[426770512,1782803440000,-1812.70143647,0.00013605,2]
[426770513,1782803440000,-248.53806493,0.00013697,2]
[426770511,1782803440000,-151.0,0.00013605,2]
[426770510,1782803440000,-10000.0,0.00013519,2]
[426770509,1782803440000,-9002.24796517,0.000135,2]
[426770508,1782803440000,-10000.0,0.00013456,2]
[426770503,1782803440000,-998.897617,0.00013384,2]
[426770497,1782803440000,-387.0,0.00013231,2]
[426770504,1782803440000,-998.897617,0.00013384,2]
[426770496,1782803440000,-350.0,0.00013215,2]
[426770499,1782803440000,-6111.0,0.0001324,2]
[426770506,1782803440000,-12362.35007204,0.00013447,2]
[426770500,1782803440000,-905.0,0.00013339,2]
[426770505,1782803440000,-14156.00978496,0.00013384,2]
[426770502,1782803440000,-998.897617,0.00013384,2]
[426770486,1782803440000,-546.85462969,0.00012339,2]
[426770495,1782803440000,-350.0,0.00013148,2]
[426770487,1782803440000,-1561.72580478,0.00012339,2]
[426770491,1782803440000,-704.9153518,0.00013017,2]
[426770490,1782803440000,-387.0,0.00012967,2]
[426770489,1782803440000,-387.0,0.0001281,2]
[426770492,1782803440000,-16734.99177886,0.00013033,2]
[426770488,1782803440000,-260.77390385,0.00012549,2]
[426770493,1782803440000,-610.0772168,0.0001305,2]
[426770498,1782803440000,-1252.0,0.00013232,2]
[426770501,1782803440000,-998.897617,0.00013384,2]
[426770507,1782803440000,-350.0,0.00013454,2]
[426770494,1782803440000,-350.0,0.000131,2]
[426770558,1782803441000,-500.0,0.00013704,2]
[426770553,1782803441000,-200.0,0.00013699,2]
[426770550,1782803441000,-350.01,0.00013699,2]
[426770549,1782803441000,-889.65,0.00013699,2]
[426770547,1782803441000,-213.51,0.00013699,2]
[426770560,1782803441000,-1798.09,0.00013704,2]
[426770555,1782803441000,-518.16800403,0.00013704,2]
[426770556,1782803441000,-500.0,0.00013704,2]
[426770557,1782803441000,-500.0,0.00013704,2]
[426770548,1782803441000,-177.92,0.00013699,2]
[426770551,1782803441000,-29267.84,0.00013699,2]
[426770559,1782803441000,-1798.09,0.00013704,2]
[426770552,1782803441000,-1000.0,0.00013699,2]
[426770574,1782803441000,-998.897617,0.00013705,2]
[426770561,1782803441000,-155860.0,0.00013705,2]
[426770572,1782803441000,-998.897617,0.00013705,2]
[426770570,1782803441000,-998.897617,0.00013705,2]
[426770562,1782803441000,-155860.0,0.00013705,2]
[426770567,1782803441000,-151.0,0.00013705,2]
[426770564,1782803441000,-151.0,0.00013705,2]
[426770568,1782803441000,-151.0,0.00013705,2]
[426770565,1782803441000,-151.0,0.00013705,2]
[426770569,1782803441000,-998.897617,0.00013705,2]
[426770571,1782803441000,-998.897617,0.00013705,2]
[426770566,1782803441000,-151.0,0.00013705,2]
[426770563,1782803441000,-151.0,0.00013705,2]
[426770541,1782803441000,-384.31,0.00013699,2]
[426770584,1782803441000,-272.944585,0.00013705,2]
[426770554,1782803441000,-500.0,0.00013704,2]
[426770540,1782803441000,-272.944585,0.00013699,2]
[426770525,1782803441000,-500.0,0.00013698,2]
[426770543,1782803441000,-272.944585,0.00013699,2]
[426770573,1782803441000,-998.897617,0.00013705,2]
[426770517,1782803441000,-500.0,0.00013698,2]
[426770519,1782803441000,-500.54376418,0.00013698,2]
[426770514,1782803441000,-277.813429,0.00013697,2]
[426770516,1782803441000,-500.0,0.00013698,2]
[426770518,1782803441000,-500.0,0.00013698,2]
[426770520,1782803441000,-500.0,0.00013698,2]
[426770515,1782803441000,-388.69386061,0.00013697,2]
[426770522,1782803441000,-500.0,0.00013698,2]
[426770531,1782803441000,-500.0,0.00013698,2]
[426770530,1782803441000,-500.0,0.00013698,2]
[426770532,1782803441000,-500.0,0.00013698,2]
[426770521,1782803441000,-500.0,0.00013698,2]
[426770523,1782803441000,-500.0,0.00013698,2]
[426770527,1782803441000,-500.0,0.00013698,2]
[426770524,1782803441000,-500.0,0.00013698,2]
[426770526,1782803441000,-500.0,0.00013698,2]
[426770529,1782803441000,-581.73724219,0.00013698,2]
[426770528,1782803441000,-500.0,0.00013698,2]
[426770533,1782803441000,-500.0,0.00013698,2]
[426770546,1782803441000,-320.26,0.00013699,2]
[426770535,1782803441000,-500.0,0.00013698,2]
[426770545,1782803441000,-320.26,0.00013699,2]
[426770542,1782803441000,-272.944585,0.00013699,2]
[426770534,1782803441000,-500.0,0.00013698,2]
[426770544,1782803441000,-272.944585,0.00013699,2]
[426770538,1782803441000,-200.0,0.00013699,2]
[426770536,1782803441000,-500.0,0.00013698,2]
[426770537,1782803441000,-1798.09,0.00013698,2]
[426770539,1782803441000,-461.18,0.00013699,2]
[426770575,1782803441000,-998.897617,0.00013705,2]
[426770602,1782803441000,-350.0,0.00013895,2]
[426770577,1782803441000,-272.944585,0.00013705,2]
[426770617,1782803441000,-656.39151,0.00014,2]
[426770612,1782803441000,-151.0,0.0001399,2]
[426770623,1782803441000,-238.673276,0.00014,2]
[426770618,1782803441000,-1500.0,0.00014,2]
[426770621,1782803441000,-2000.0,0.00014,2]
[426770619,1782803441000,-2000.0,0.00014,2]
[426770620,1782803441000,-2000.0,0.00014,2]
[426770615,1782803441000,-1289.143,0.00013992,2]
[426770613,1782803441000,-151.0,0.0001399,2]
[426770616,1782803441000,-298.341595,0.00014,2]
[426770622,1782803441000,-2000.0,0.00014,2]
[426770624,1782803441000,-2000.0,0.00014,2]
[426770626,1782803441000,-343.14749,0.00014,2]
[426770636,1782803441000,-1226.0,0.0001411,2]
[426770625,1782803441000,-2757.0,0.00014,2]
[426770627,1782803441000,-2000.0,0.00014,2]
[426770635,1782803441000,-170.37,0.00014087,2]
[426770634,1782803441000,-500.0,0.0001407,2]
[426770631,1782803441000,-1231.0,0.0001404,2]
[426770630,1782803441000,-500.0,0.00014039,2]
[426770629,1782803441000,-715.84,0.00014026,2]
[426770628,1782803441000,-2000.0,0.00014,2]
[426770632,1782803441000,-500.0,0.0001407,2]
[426770633,1782803441000,-500.0,0.0001407,2]
[426770637,1782803441000,-3669.929,0.0001411,2]
[426770640,1782803441000,-350.0,0.00014136,2]
[426770639,1782803441000,-1812.70143645,0.00014122,2]
[426770578,1782803441000,-272.944585,0.00013705,2]
[426770641,1782803441000,-350.0,0.0001416,2]
[426770614,1782803441000,-1382.196,0.00013992,2]
[426770611,1782803441000,-153.991655,0.0001399,2]
[426770638,1782803441000,-6088.0,0.0001411,2]
[426770608,1782803441000,-1500.0,0.00013973,2]
[426770605,1782803441000,-1000.0,0.000139,2]
[426770583,1782803441000,-272.944585,0.00013705,2]
[426770580,1782803441000,-272.944585,0.00013705,2]
[426770582,1782803441000,-272.944585,0.00013705,2]
[426770581,1782803441000,-272.944585,0.00013705,2]
[426770579,1782803441000,-272.944585,0.00013705,2]
[426770585,1782803441000,-500.0,0.0001377,2]
[426770587,1782803441000,-500.0,0.00013788,2]
[426770588,1782803441000,-500.0,0.00013788,2]
[426770586,1782803441000,-500.0,0.00013788,2]
[426770592,1782803441000,-909.0,0.00013789,2]
[426770597,1782803441000,-317.0,0.000138,2]
[426770589,1782803441000,-500.0,0.00013788,2]
[426770595,1782803441000,-200.0,0.00013789,2]
[426770576,1782803441000,-998.897617,0.00013705,2]
[426770590,1782803441000,-152.0,0.00013789,2]
[426770607,1782803441000,-150.0,0.00013971,2]
[426770606,1782803441000,-463.03017944,0.00013924,2]
[426770604,1782803441000,-4000.0,0.000139,5]
[426770601,1782803441000,-151.0,0.00013869,2]
[426770591,1782803441000,-916.0,0.00013789,2]
[426770610,1782803441000,-28791.48592282,0.0001399,2]
[426770598,1782803441000,-890.0,0.000138,2]
[426770603,1782803441000,-310.0,0.000139,2]
[426770609,1782803441000,-216.93823,0.00013989,2]
[426770599,1782803441000,-151.0,0.00013853,2]
[426770596,1782803441000,-216.93822,0.00013789,2]
[426770594,1782803441000,-883.0,0.00013789,2]
[426770593,1782803441000,-151.0,0.00013789,2]
[426770600,1782803441000,-151.0,0.00013869,2]
[426770686,1782803442000,-6885.11636035,0.00014649,2]
[426770684,1782803442000,-2860.14014067,0.00014639,2]
[426770679,1782803442000,-1222.0,0.0001456,2]
[426770677,1782803442000,-244.30317569,0.00014509,2]
[426770680,1782803442000,-273.80128704,0.000146,2]
[426770672,1782803442000,-272.944585,0.00014399,2]
[426770678,1782803442000,-1500.0,0.00014521,2]
[426770675,1782803442000,-110435.0,0.00014399,2]
[426770682,1782803442000,-428.20354028,0.000146,2]
[426770681,1782803442000,-306.05241269,0.000146,2]
[426770674,1782803442000,-272.944593,0.00014399,2]
[426770676,1782803442000,-350.0,0.00014409,2]
[426770688,1782803442000,-5582.0,0.00014712,2]
[426770690,1782803442000,-2742.44262621,0.00014733,2]
[426770689,1782803442000,-1745.31003644,0.00014729,2]
[426770692,1782803442000,-500.0,0.00014738,2]
[426770691,1782803442000,-631.55065149,0.00014738,2]
[426770693,1782803442000,-500.0,0.00014738,2]
[426770685,1782803442000,-1812.70143645,0.00014639,2]
[426770696,1782803442000,-521.04363516,0.00014738,2]
[426770697,1782803442000,-500.0,0.00014738,2]
[426770695,1782803442000,-500.0,0.00014738,2]
[426770698,1782803442000,-500.0,0.00014738,2]
[426770710,1782803442000,-283874.39658378,0.00014739,2]
[426770700,1782803442000,-1798.09,0.00014738,2]
[426770711,1782803442000,-151.0,0.00014739,2]
[426770683,1782803442000,-613.33091372,0.00014639,2]
[426770687,1782803442000,-604.82252627,0.00014669,2]
[426770673,1782803442000,-272.944585,0.00014399,2]
[426770655,1782803442000,-272.944585,0.00014379,2]
[426770669,1782803442000,-998.897617,0.00014399,2]
[426770642,1782803442000,-5221.0,0.00014189,5]
[426770645,1782803442000,-151.0,0.00014247,2]
[426770644,1782803442000,-1175.91847034,0.00014241,5]
[426770643,1782803442000,-1027.02437262,0.00014241,5]
[426770647,1782803442000,-151.0,0.00014247,2]
[426770646,1782803442000,-151.0,0.00014247,2]
[426770648,1782803442000,-151.0,0.00014247,2]
[426770650,1782803442000,-500.0,0.0001437,2]
[426770658,1782803442000,-272.944585,0.00014379,2]
[426770659,1782803442000,-300.0,0.00014398,2]
[426770660,1782803442000,-300.0,0.00014398,2]
[426770649,1782803442000,-3649.26799181,0.00014364,2]
[426770651,1782803442000,-268.404,0.00014379,2]
[426770653,1782803442000,-3565.0,0.00014379,2]
[426770654,1782803442000,-283.0,0.00014379,2]
[426770652,1782803442000,-195.95,0.00014379,2]
[426770656,1782803442000,-272.944585,0.00014379,2]
[426770657,1782803442000,-272.944585,0.00014379,2]
[426770661,1782803442000,-300.0,0.00014398,2]
[426770663,1782803442000,-300.0,0.00014398,2]
[426770668,1782803442000,-998.897617,0.00014399,2]
[426770666,1782803442000,-151.0,0.00014399,2]
[426770662,1782803442000,-666.0,0.00014398,2]
[426770664,1782803442000,-300.0,0.00014398,2]
[426770667,1782803442000,-998.897617,0.00014399,2]
[426770671,1782803442000,-272.944585,0.00014399,2]
[426770665,1782803442000,-300.0,0.00014398,2]
[426770670,1782803442000,-998.897617,0.00014399,2]
[426770713,1782803442000,-163.121945,0.00014739,2]
[426770701,1782803442000,-300.0,0.00014738,2]
[426770714,1782803442000,-151.0,0.00014739,2]
[426770745,1782803442000,-500.0,0.00014998,2]
[426770755,1782803442000,-300.0,0.00014999,2]
[426770750,1782803442000,-500.0,0.00014999,2]
[426770754,1782803442000,-1798.09,0.00014999,2]
[426770747,1782803442000,-500.0,0.00014999,2]
[426770748,1782803442000,-500.0,0.00014999,2]
[426770751,1782803442000,-500.0,0.00014999,2]
[426770746,1782803442000,-1027.02437264,0.00014999,5]
[426770749,1782803442000,-500.0,0.00014999,2]
[426770753,1782803442000,-1798.09,0.00014999,2]
[426770752,1782803442000,-500.0,0.00014999,2]
[426770757,1782803442000,-300.0,0.00014999,2]
[426770767,1782803442000,-365.63653204,0.00015,2]
[426770744,1782803442000,-39409.47264459,0.00014989,2]
[426770756,1782803442000,-300.0,0.00014999,2]
[426770758,1782803442000,-300.0,0.00014999,2]
[426770766,1782803442000,-918.4443836,0.00015,2]
[426770762,1782803442000,-150.0,0.00015,2]
[426770761,1782803442000,-151.733033,0.00015,2]
[426770765,1782803442000,-2390.25062136,0.00015,2]
[426770764,1782803442000,-150.0,0.00015,2]
[426770760,1782803442000,-160.65394552,0.00015,2]
[426770763,1782803442000,-3372.63290264,0.00015,2]
[426770768,1782803442000,-2379.1580433,0.00015,2]
[426770769,1782803442000,-193.984649,0.00015068,2]
[426770770,1782803442000,-193.984649,0.00015068,2]
[426770771,1782803442000,-193.984649,0.00015068,2]
[426770699,1782803442000,-1798.09,0.00014738,2]
[426770759,1782803442000,-321651.05314247,0.00015,2]
[426770740,1782803442000,-500.0,0.0001497,2]
[426770706,1782803442000,-300.0,0.00014738,2]
[426770738,1782803442000,-500.0,0.0001497,2]
[426770739,1782803442000,-500.0,0.0001497,2]
[426770705,1782803442000,-666.0,0.00014738,2]
[426770702,1782803442000,-300.0,0.00014738,2]
[426770709,1782803442000,-6530.0,0.00014739,5]
[426770707,1782803442000,-16584.44482188,0.00014738,2]
[426770716,1782803442000,-998.897617,0.00014739,2]
[426770723,1782803442000,-8100.0,0.000148,5]
[426770724,1782803442000,-350.0,0.00014809,2]
[426770719,1782803442000,-998.897617,0.00014739,2]
[426770721,1782803442000,-998.897617,0.00014739,2]
[426770726,1782803442000,-300.0,0.00014849,2]
[426770722,1782803442000,-998.897626,0.00014739,2]
[426770725,1782803442000,-16734.99177886,0.00014843,2]
[426770704,1782803442000,-300.0,0.00014738,2]
[426770728,1782803442000,-300.0,0.00014849,2]
[426770727,1782803442000,-300.0,0.00014849,2]
[426770732,1782803442000,-350.0,0.00014852,2]
[426770737,1782803442000,-350.0,0.00014966,2]
[426770734,1782803442000,-11059.04990957,0.000149,2]
[426770736,1782803442000,-292.29533509,0.00014908,2]
[426770733,1782803442000,-1027.02437262,0.00014896,5]
[426770735,1782803442000,-12200.0,0.000149,5]
[426770743,1782803442000,-300.0,0.00014988,2]
[426770742,1782803442000,-300.0,0.00014988,2]
[426770731,1782803442000,-57582.54490871,0.0001485,2]
[426770741,1782803442000,-300.0,0.00014988,2]
[426770729,1782803442000,-797.52937017,0.00014849,2]
[426770730,1782803442000,-331.37629794,0.00014849,2]
[426770806,1782803443000,-1500.0,0.00015617,2]
[426770817,1782803443000,-500.0,0.00016438,2]
[426770811,1782803443000,-501.0,0.0001611,2]
[426770809,1782803443000,-199.44314247,0.00016,2]
[426770810,1782803443000,-794.45861331,0.00016002,2]
[426770813,1782803443000,-790.42348969,0.000163,2]
[426770812,1782803443000,-1500.0,0.00016165,2]
[426770808,1782803443000,-200.0,0.00016,2]
[426770814,1782803443000,-1692.62602198,0.000164,2]
[426770819,1782803443000,-500.0,0.00016438,2]
[426770825,1782803443000,-500.0,0.00016438,2]
[426770816,1782803443000,-300.0,0.00016437,2]
[426770827,1782803443000,-151.0,0.00016438,2]
[426770826,1782803443000,-500.0,0.00016438,2]
[426770820,1782803443000,-500.0,0.00016438,2]
[426770821,1782803443000,-500.0,0.00016438,2]
[426770822,1782803443000,-500.0,0.00016438,2]
[426770824,1782803443000,-559.83815874,0.00016438,2]
[426770823,1782803443000,-500.0,0.00016438,2]
[426770807,1782803443000,-563.0,0.000157,2]
[426770818,1782803443000,-500.0,0.00016438,2]
[426770805,1782803443000,-1243.55423685,0.00015517,2]
[426770789,1782803443000,-193.984649,0.00015068,2]
[426770801,1782803443000,-350.0,0.00015104,2]
[426770772,1782803443000,-193.984649,0.00015068,2]
[426770773,1782803443000,-193.984649,0.00015068,2]
[426770775,1782803443000,-193.984649,0.00015068,2]
[426770777,1782803443000,-193.984649,0.00015068,2]
[426770779,1782803443000,-193.984649,0.00015068,2]
[426770781,1782803443000,-193.984649,0.00015068,2]
[426770788,1782803443000,-193.984649,0.00015068,2]
[426770783,1782803443000,-193.984649,0.00015068,2]
[426770828,1782803443000,-151.0,0.00016438,2]
[426770785,1782803443000,-193.984649,0.00015068,2]
[426770791,1782803443000,-193.984649,0.00015068,2]
[426770793,1782803443000,-193.984649,0.00015068,2]
[426770794,1782803443000,-193.984649,0.00015068,2]
[426770795,1782803443000,-193.984649,0.00015068,2]
[426770798,1782803443000,-193.984651,0.00015068,2]
[426770803,1782803443000,-12362.35007204,0.00015197,2]
[426770800,1782803443000,-500.0,0.00015091,2]
[426770797,1782803443000,-193.984649,0.00015068,2]
[426770796,1782803443000,-193.984649,0.00015068,2]
[426770804,1782803443000,-563.0,0.000152,2]
[426770799,1782803443000,-1500.0,0.00015069,2]
[426770802,1782803443000,-540.42,0.00015136,2]
[426770835,1782803443000,-161.572846,0.00016438,2]
[426770815,1782803443000,-300.0,0.00016437,2]
[426770832,1782803443000,-151.0,0.00016438,2]
[426770860,1782803443000,-3212.54483294,0.00016438,2]
[426770859,1782803443000,-3212.544838,0.00016438,2]
[426770862,1782803443000,-359.007631,0.00016438,2]
[426770856,1782803443000,-3212.544838,0.00016438,2]
[426770857,1782803443000,-3212.544838,0.00016438,2]
[426770863,1782803443000,-359.007631,0.00016438,2]
[426770861,1782803443000,-359.007631,0.00016438,2]
[426770865,1782803443000,-359.007631,0.00016438,2]
[426770875,1782803443000,-359.007631,0.00016438,2]
[426770870,1782803443000,-359.007631,0.00016438,2]
[426770858,1782803443000,-3212.544838,0.00016438,2]
[426770868,1782803443000,-359.007631,0.00016438,2]
[426770864,1782803443000,-359.007631,0.00016438,2]
[426770866,1782803443000,-359.007631,0.00016438,2]
[426770869,1782803443000,-359.007631,0.00016438,2]
[426770871,1782803443000,-359.007631,0.00016438,2]
[426770873,1782803443000,-359.007631,0.00016438,2]
[426770872,1782803443000,-359.007631,0.00016438,2]
[426770874,1782803443000,-359.007631,0.00016438,2]
[426770877,1782803443000,-359.007631,0.00016438,2]
[426770878,1782803443000,-359.007631,0.00016438,2]
[426770831,1782803443000,-151.0,0.00016438,2]
[426770867,1782803443000,-359.007631,0.00016438,2]
[426770853,1782803443000,-3212.544838,0.00016438,2]
[426770876,1782803443000,-359.007631,0.00016438,2]
[426770854,1782803443000,-3212.544838,0.00016438,2]
[426770839,1782803443000,-218.23034,0.00016438,2]
[426770855,1782803443000,-3212.544838,0.00016438,2]
[426770834,1782803443000,-157.035257,0.00016438,2]
[426770830,1782803443000,-151.0,0.00016438,2]
[426770833,1782803443000,-151.0,0.00016438,2]
[426770836,1782803443000,-151.0,0.00016438,2]
[426770829,1782803443000,-151.0,0.00016438,2]
[426770837,1782803443000,-151.0,0.00016438,2]
[426770841,1782803443000,-3212.544838,0.00016438,2]
[426770840,1782803443000,-282.86917645,0.00016438,2]
[426770843,1782803443000,-3212.544838,0.00016438,2]
[426770838,1782803443000,-151.0,0.00016438,2]
[426770851,1782803443000,-3212.544838,0.00016438,2]
[426770842,1782803443000,-3212.544838,0.00016438,2]
[426770846,1782803443000,-3212.544838,0.00016438,2]
[426770849,1782803443000,-3212.544838,0.00016438,2]
[426770845,1782803443000,-3212.544838,0.00016438,2]
[426770844,1782803443000,-3212.544838,0.00016438,2]
[426770848,1782803443000,-3212.544838,0.00016438,2]
[426770847,1782803443000,-3212.544838,0.00016438,2]
[426770850,1782803443000,-3212.544838,0.00016438,2]
[426770852,1782803443000,-3212.544838,0.00016438,2]
[426770923,1782803444000,-1692.62602198,0.000178,2]
[426770921,1782803444000,-155860.0,0.00017731,2]
[426770924,1782803444000,-1500.0,0.00017809,2]
[426770913,1782803444000,-1289.11639507,0.000177,2]
[426770916,1782803444000,-300.0,0.0001773,2]
[426770914,1782803444000,-666.0,0.0001773,2]
[426770917,1782803444000,-500.0,0.0001773,2]
[426770911,1782803444000,-613.3309137,0.00017683,2]
[426770904,1782803444000,-3565.0,0.00017379,2]
[426770918,1782803444000,-500.0,0.0001773,2]
[426770910,1782803444000,-1692.62602198,0.000176,2]
[426770915,1782803444000,-300.0,0.0001773,2]
[426770919,1782803444000,-1798.09,0.0001773,2]
[426770935,1782803444000,-200.0,0.00018,2]
[426770922,1782803444000,-155860.0,0.00017731,2]
[426770927,1782803444000,-500.0,0.00017842,7]
[426770926,1782803444000,-500.0,0.00017842,7]
[426770933,1782803444000,-1692.62602198,0.00018,2]
[426770925,1782803444000,-500.0,0.00017842,7]
[426770931,1782803444000,-3662.8510419,0.00017957,2]
[426770929,1782803444000,-500.0,0.00017956,2]
[426770928,1782803444000,-500.0,0.00017897,2]
[426770934,1782803444000,-174.815115,0.00018,2]
[426770930,1782803444000,-300.0,0.00017956,2]
[426770912,1782803444000,-22192.0,0.00017699,2]
[426770932,1782803444000,-331.96678682,0.00018,2]
[426770920,1782803444000,-1798.09,0.0001773,2]
[426770909,1782803444000,-283.13889704,0.00017573,2]
[426770881,1782803444000,-1692.62602198,0.000166,2]
[426770907,1782803444000,-501.0,0.00017514,3]
[426770936,1782803444000,-201.0,0.00018148,2]
[426770880,1782803444000,-359.007636,0.00016438,2]
[426770879,1782803444000,-359.007631,0.00016438,2]
[426770885,1782803444000,-500.0,0.00016761,2]
[426770886,1782803444000,-1692.62602198,0.000168,2]
[426770889,1782803444000,-350.0,0.00016941,2]
[426770887,1782803444000,-501.0,0.00016812,2]
[426770882,1782803444000,-16734.99177886,0.00016652,2]
[426770884,1782803444000,-1500.0,0.00016713,2]
[426770888,1782803444000,-1692.62602198,0.000169,2]
[426770891,1782803444000,-150.0,0.00016971,2]
[426770899,1782803444000,-6088.0,0.0001711,2]
[426770906,1782803444000,-1692.62602198,0.000174,2]
[426770902,1782803444000,-1692.62602198,0.000173,2]
[426770900,1782803444000,-201.0,0.00017148,2]
[426770901,1782803444000,-1500.0,0.00017261,2]
[426770897,1782803444000,-1217.0,0.0001711,2]
[426770896,1782803444000,-1692.62602198,0.000171,2]
[426770894,1782803444000,-1860.28276624,0.00017017,2]
[426770895,1782803444000,-1231.0,0.0001704,2]
[426770893,1782803444000,-1278.0,0.00016992,2]
[426770890,1782803444000,-12362.35007204,0.00016948,2]